Cogmind - Beta 14 @@@ ROGUE MODE // 2025.03.29 @ 12:51:12 Player: the Result: Self-destructed Performance ------------- Evolutions (2) 1000 Regions Visited (3) 600 Robots Destroyed (31) 155 Value Destroyed (984) 984 Prototype IDs (0) 0 Alien Tech Used (0) 0 Bonus (-47) -47 TOTAL SCORE: 2692 Bonus ------- Friendly Fire -47 Cogmind --------- Core Integrity 459/550 Matter 15/300 Energy 200/200 System Corruption 0% Temperature Warm (171) Movement Treading (250) Ox1 Location -8/Materials Parts ------- > --- POWER (1) -------- Subdweller Power Source > --- PROPULSION (3) --- Light Treads Spiked Treads > --- UTILITY (4) ------ Large Storage Unit Improved Sensor Array Light Armor Plating Makeshift Light Armor Plating > --- WEAPON (3) ------- Battle Rifle Battle Cannon Subdweller Shrapnel Launcher > --- INVENTORY (15) --- Makeshift Leg Disposable Heat Sink Medium Storage Unit Structural Scanner Propulsion Shielding Light Armor Plating Riot Gun Heavy Riot Gun Battle Cannon Battle Cannon Peak State ------------ > --- POWER ------------ Subdweller Power Source > --- PROPULSION ------- Light Treads Spiked Treads > --- UTILITY ---------- Large Storage Unit Improved Sensor Array Light Armor Plating Makeshift Light Armor Plating > --- WEAPON ----------- Battle Rifle Battle Cannon Subdweller Shrapnel Launcher > --- INVENTORY -------- Makeshift Leg Disposable Heat Sink Medium Storage Unit Structural Scanner Propulsion Shielding Light Armor Plating Riot Gun Heavy Riot Gun Battle Rifle Battle Cannon Battle Cannon [Rating: 22] Favorites ----------- Power Subdweller Power Source Engine Subdweller Power Source Propulsion Light Treads Treads Light Treads Utility Large Storage Unit Device Improved Sensor Array Storage Large Storage Unit Protection Propulsion Shielding Weapon Subdweller Machine Gun Ballistic Gun Subdweller Machine Gun Ballistic Cannon Battle Cannon Launcher Grenade Launcher Slashing Weapon Makeshift Sword Build | -11 -10 -10 -8 ------- Run | Yrd Mat Sub Mat Slots Evolved 4 | . . . 4 Power . | . . . . Propulsion 1 | . . . 1 Utility 2 | . . . 2 Weapon 1 | . . . 1 Parts Attached 35 | 6 5 20 4 Power 6 | 1 . 5 . Engine 6 | 1 . 5 . Core . | . . . . Reactor . | . . . . Propulsion 4 | 2 . 2 . Treads 4 | 2 . 2 . Leg . | . . . . Wheel . | . . . . Hover . | . . . . Flight . | . . . . Utility 9 | 1 3 3 2 Device 1 | . . . 1 Storage 3 | 1 2 . . Processor . | . . . . Hackware . | . . . . Protection 5 | . 1 3 1 Artifact . | . . . . Weapon 16 | 2 2 10 2 Energy Gun . | . . . . Energy Cannon . | . . . . Ballistic Gun 8 | 2 . 5 1 Ballistic Cannon 4 | . . 3 1 Launcher 3 | . 2 1 . Special Weapon . | . . . . Impact Weapon . | . . . . Slashing Weapon 1 | . . 1 . Piercing Weapon . | . . . . Special Melee Weapon . | . . . . Unidentified Prototypes . | . . . . Parts Lost 4 | . . 4 . Power 1 | . . 1 . Propulsion 1 | . . 1 . Utility . | . . . . Weapon 2 | . . 2 . Highest Loss Streak 1 | . . 1 . To Critical Strikes . | . . . . Average Slot Usage (%) 95 | . 97 95 85 Engine 11 | . 14 10 9 Treads 27 | . 28 27 18 Storage 13 | . 14 14 9 Protection 13 | . 11 13 16 Ballistic Gun 16 | . 14 17 9 Ballistic Cannon 6 | . . 7 7 Launcher 3 | . 13 . 9 Slashing Weapon 1 | . . 1 . Peak Build Rating 22 | 6 8 16 22 Average Rating 11 | 4 7 12 20 On Entrance 7 | . 6 8 16 Naked Turns . | . . . . Heaviest Build 46 | 13 31 39 46 Greatest Support 40 | 40 40 40 40 Greatest Overweight (x) 1 | . . 1 1 Average Overweight (x) . | . . . . Largest Inventory Capacity 15 | 8 15 15 15 Average Capacity 14 | 7 12 15 15 Most Carried 15 | 4 10 15 13 Average Carried 12 | 2 8 13 11 Final Capacity 15 | 8 15 15 15 Final Carried 13 | 4 10 13 10 Class Distribution -------------------- 72% | Mutant 25% | Derelict-Mutant Dominant Class ---------------- Mutant | -10/Materials Mutant | -10/Subcaves Derelict-Tank | -8/Materials Resources | -11 -10 -10 -8 ----------- Run | Yrd Mat Sub Mat Matter Collected 1069 | 175 56 783 55 Remotely . | . . . . Salvage Created 827 | . 94 619 114 Parts 71 | . 12 53 6 Haulers Intercepted . | . . . . Recyclers Shooed . | . . . . Parts Field Recycled . | . . . . Retrieved Matter . | . . . . Parts Self-Destructed 19 | . . 19 . Prevented . | . . . . Kills | -11 -10 -10 -8 ------- Run | Yrd Mat Sub Mat Combat Hostiles Destroyed 26 | . 4 19 3 Melee 2 | . . 2 . Guns 16 | . 1 14 1 Cannons 2 | . . 2 . AOE 6 | . 3 1 2 Classes Destroyed 7 | . 4 3 . Builder 2 | . 1 . 1 Watcher 2 | . 1 . 1 Swarmer 5 | . 2 3 . Grunt 6 | . 2 2 2 Sentry 2 | . . 1 1 Subdweller 13 | . . 13 . Zionite 1 | . . 1 . Best Kill Streak 4 | . 4 3 4 Combat Bots Only 3 | . 2 3 2 Max Kills in Single Turn 3 | . 3 1 1 Gunslinging . | . . . . Exploded 1 | . 1 1 1 Melee 1 | . . 1 . Uniques/NPCs Destroyed . | . . . . Combat | -11 -10 -10 -8 -------- Run | Yrd Mat Sub Mat Hostile Shots Fired 106 | . 5 90 11 Missed 39 | . 4 30 5 Damage Taken 1649 | . 9 1162 478 Core 286 | . . 195 91 Absorbed by Shields . | . . . . Redirected to Shielding 102 | . . 102 . Core Remaining (%) 61 | 100 . 22 . Volleys Fired 89 | . 5 74 10 Largest 3 | . 2 2 3 Hottest 104 | . 50 69 104 Shots Fired 181 | . 8 143 30 Gun 113 | . 4 99 10 Cannon 49 | . . 39 10 Launcher 19 | . 4 5 10 Special . | . . . . Kinetic 172 | . 4 138 30 Thermal . | . . . . Explosive 9 | . 4 5 . Electromagnetic . | . . . . Robot Hit Streak 16 | . 2 16 6 Robot Miss Streak 6 | . 2 6 3 Penetration Max . | . . . . Secondary Targets 2 | . . 2 . Max Gunslinging Chain 1 | . . 1 . Shots Hit Robots 84 | . 4 64 16 Core Hits 56 | . 10 33 13 Critical Kills . | . . . . Critical Parts Destroyed . | . . . . Critical Strikes 1 | . . 1 . Blast 1 | . . 1 . Melee Attacks 31 | . . 31 . Impact . | . . . . Slashing 31 | . . 31 . Piercing . | . . . . Sneak Attacks . | . . . . Combat Hostiles . | . . . . Follow-up Attacks . | . . . . Damage Inflicted 2471 | . 340 1321 810 Guns 891 | . 28 783 80 Cannons 300 | . . 213 87 Explosions 1174 | . 312 219 643 Melee 106 | . . 106 . Ramming . | . . . . Kinetic 1834 | . 28 996 810 Thermal . | . . . . Explosive 531 | . 312 219 . Electromagnetic . | . . . . Impact . | . . . . Slashing 106 | . . 106 . Piercing . | . . . . Highest Corruption 2 | . . 2 . Average Corruption 2 | . . 2 . Corruption Purged . | . . . . Corruption Blocked . | . . . . Effects 1 | . . 1 . Message Errors 1 | . . 1 . Overload Shots . | . . . . Overflow Damage 11 | . 7 4 . Projectiles 4 | . . 4 . Explosions 7 | . 7 . . Melee . | . . . . Knockbacks 3 | . . 3 . Impact . | . . . . Kinetic 3 | . . 3 . Secondary . | . . . . Self-Inflicted Damage 63 | . . . 63 Shots 3 | . . . 3 Rammed . | . . . . Targets Rammed . | . . . . Kicked . | . . . . Crushed . | . . . . Highest Temperature 183 | . . . 183 Average Temperature 78 | . . . 78 Received Heat Transfer 264 | . . 219 45 Siege Activations . | . . . . Robots Corrupted . | . . . . Combat Hostiles . | . . . . Parts Fried . | . . . . Impact Corruptions . | . . . . Robots Melted . | . . . . Combat Hostiles . | . . . . Parts Melted 2 | . . 2 . Heat Transferred . | . . . . Parts Sabotaged . | . . . . Parts Stolen . | . . . . Parts Stripped . | . . . . Power Chain Reactions . | . . . . Alert | -11 -10 -10 -8 ------- Run | Yrd Mat Sub Mat Peak Influence 223 | . 148 . 223 Initial . | . . . . Average 45 | . 42 . 91 Maximum Alert Level 1 | . . . 1 Low Security (%) 99 | 100 100 . 95 Level 1 . | . . . 4 Level 2 . | . . . . Level 3 . | . . . . Level 4 . | . . . . Level 5 . | . . . . High Security . | . . . . Max Security . | . . . . Squads Dispatched . | . . . . Investigation . | . . . . Extermination . | . . . . Reinforcement . | . . . . Assault . | . . . . Garrison . | . . . . Intercept . | . . . . Searches Triggered . | . . . . Construction Impeded . | . . . . Haulers Reinforced . | . . . . Active Scanning Responses . | . . . . Cargo Convoy Interrupts . | . . . . Stealth | -11 -10 -10 -8 --------- Run | Yrd Mat Sub Mat Distress Signals 2 | . 1 . 1 Communications Jammed . | . . . . Distress Signals . | . . . . Times Spotted 36 | . 8 19 9 Peak Tracking Total 5 | . 3 3 5 Tactical Retreats . | . . . . Traps | -11 -10 -10 -8 ------- Run | Yrd Mat Sub Mat Traps Triggered 1 | . 1 . . Indirectly . | . . . . Trap Hack Attempts . | . . . . Triggered . | . . . . Disarmed . | . . . . Reprogrammed . | . . . . Reused . | . . . . Traps Extracted . | . . . . Installed . | . . . . Triggered . | . . . . Machines | -11 -10 -10 -8 ---------- Run | Yrd Mat Sub Mat Machines Disabled 3 | . . . 3 Max in Single Turn 2 | . . . 2 Machines Repaired . | . . . . Machines Dismantled . | . . . . Machines Sabotaged . | . . . . Overloaded Fab Kills . | . . . . Hacking | -11 -10 -10 -8 --------- Run | Yrd Mat Sub Mat Machines Accessed 4 | . 3 1 . Terminals 3 | . 3 . . Fabricators . | . . . . Repair Stations . | . . . . Recycling Units . | . . . . Scanalyzers . | . . . . Garrison Access . | . . . . Total Hacks 13 | . 9 4 . Successful 6 | . 2 4 . Failed 7 | . 7 . . Catastrophic 1 | . 1 . . Database Lockouts . | . . . . Manual 5 | . 5 . . Terminals 9 | . 9 . . Fabricators . | . . . . Repair Stations . | . . . . Recycling Units . | . . . . Scanalyzers . | . . . . Garrison Access . | . . . . Terminal Hacks 5 | . 1 4 . Record 4 | . . 4 . Registered Components 1 | . 1 . . Fabricator Hacks . | . . . . Repair Station Hacks . | . . . . Recycling Unit Hacks . | . . . . Scanalyzer . | . . . . Garrison Access Hacks . | . . . . Unauthorized Hacks 1 | . 1 . . Terminals 1 | . 1 . . Botnet 1 | . 1 . . Fabricators . | . . . . Repair Stations . | . . . . Recycling Units . | . . . . Scanalyzers . | . . . . Garrison Access . | . . . . Data Cores Recovered . | . . . . Used . | . . . . Hacking Detections 3 | . 3 . . Full Trace Events . | . . . . Feedback Events . | . . . . Feedback Blocked . | . . . . Robot Schematics Acquired . | . . . . Robots Built . | . . . . Authchips . | . . . . Time . | . . . . Total Robot Build Rating . | . . . . Part Schematics Acquired . | . . . . Parts Built . | . . . . Authchips . | . . . . Time . | . . . . Total Part Build Rating . | . . . . Parts Repaired . | . . . . Time . | . . . . Parts Recycled . | . . . . Recycled Matter . | . . . . Retrieved Matter . | . . . . Retrieved Components . | . . . . Parts Scanalyzed . | . . . . Part Schematics Acquired . | . . . . Parts Damaged . | . . . . Bothacking | -11 -10 -10 -8 ------------ Run | Yrd Mat Sub Mat Used RIF Installer . | . . . . Robots Hacked . | . . . . Non-combat . | . . . . Combat . | . . . . Robot Hacks Applied . | . . . . Relay Couplers Released . | . . . . Fabnet Peak Effective % . | . . . . Robots Rewired . | . . . . Allies Hacked . | . . . . Hacks Repelled . | . . . . Allies | -11 -10 -10 -8 -------- Run | Yrd Mat Sub Mat Total Allies . | . . . . Largest Group . | . . . . Highest-Rated Group . | . . . . Highest-Rated Ally . | . . . . Total Orders . | . . . . Ally Attacks . | . . . . Total Damage . | . . . . Kills . | . . . . Allies Corrupted . | . . . . Allies Melted . | . . . . Intel | -11 -10 -10 -8 ------- Run | Yrd Mat Sub Mat Robot Analysis Total . | . . . . Derelict Logs Recovered 1 | . . 1 . Drone Launches . | . . . . Drone Recoveries . | . . . . Exploration | -11 -10 -10 -8 ------------- Run | Yrd Mat Sub Mat Turns Passed 5411 | 76 803 4404 128 Spaces Moved 2844 | 44 278 2481 41 Core 6 | 6 . . . Treads 2838 | 38 278 2481 41 Legs . | . . . . Wheels . | . . . . Hover . | . . . . Flight . | . . . . Fastest Speed 50 | 50 160 160 160 Average Speed 163 | 145 160 163 221 Slowest Speed 260 | 160 160 260 250 Overloaded Moves . | . . . . Propulsion Burnouts . | . . . . Robots Hopped . | . . . . Cave-ins Triggered 2 | . . 1 1 Exploration Rate (%) 32 | 5 38 79 7 Regions Visited 3 Branch Regions 1 Pre-discovered Areas 1 | . . 1 . Known Exits Taken . | . . . . Unknown Exits Taken 3 | 1 1 1 . Scrap Searched 9 | . . 9 . Spaces Dug 18 | . . 18 . Terrain Destroyed 142 | . 28 33 81 Melee 18 | . . 18 . Projectile 2 | . . . 2 AOE 122 | . 28 15 79 Terrain Rammed . | . . . . Walls Destroyed . | . . . . Machines Disabled . | . . . . Actions | -11 -10 -10 -8 --------- Run | Yrd Mat Sub Mat Total 3410 | 53 629 2672 56 Wait 364 | . 328 36 . Move 2840 | 43 277 2479 41 Hop . | . . . . Pick Up 28 | 4 9 15 . Fast Attach 10 | 6 2 1 1 Attach 9 | . . 7 2 Detach . | . . . . Swap 16 | . 3 12 1 Drop 22 | . 5 16 1 Fire 89 | . 5 74 10 Melee 31 | . . 31 . Ram . | . . . . Kick . | . . . . Crush . | . . . . Escape Stasis 1 | . . 1 . Rewire . | . . . . Trap . | . . . . Miscellaneous . | . . . . Route ------- -11/Scrapyard -10/Materials -10/Subcaves (discovered 2 exits: [*Mat x2]) -8/Materials History --------- Turn | Location | Event 41 | -11/Scrapyard | Discovered new exit (range 14) 77 | -11/Scrapyard | Entered Materials 339 | -10/Materials | Build established: Mutant 856 | -10/Materials | Discovered new exit (range 6) 880 | -10/Materials | Entered Subcaves 1577 | -10/Subcaves | Ambushed by Subdweller buried in earth 1687 | -10/Subcaves | Learned location of Zion (-7) 1687 | -10/Subcaves | Met a Zionite searching for "candidates" 1713 | -10/Subcaves | Discovered new exit (range 12) 1844 | -10/Subcaves | A swath of the cavern ceiling suddenly collapsed 2123 | -10/Subcaves | Disturbed a concealed Subdweller 2378 | -10/Subcaves | Shifting Twisted Machinery released Sub. Monowheel 2383 | -10/Subcaves | Shifting Twisted Machinery released Battle Cannon 2485 | -10/Subcaves | A swath of the cavern ceiling suddenly collapsed 3227 | -10/Subcaves | Discovered new exit (range 10) 3394 | -10/Subcaves | Visited Clippyterm 3399 | -10/Subcaves | Learned Factory fabricator intel 3399 | -10/Subcaves | Learned Factory trap positions 3509 | -10/Subcaves | Disturbed a concealed Subdweller 3718 | -10/Subcaves | Core integrity fell below 50% 4100 | -10/Subcaves | Build established: Derelict-Mutant 4654 | -10/Subcaves | Ambushed by Subdweller buried in earth 5149 | -10/Subcaves | Ambushed by Subdweller buried in earth 5153 | -10/Subcaves | Crushed by falling debris 5284 | -10/Subcaves | Entered Materials 5284 | -8/Materials | Evolved 4 slots: Propulsion x1, Utility x2, Weapon x1 5399 | -8/Materials | Crushed by falling debris 5412 | -8/Materials | Self-destructed Last Messages --------------- U-05 Engineer builds a Wall. Acquired 13 matter. U-05 Engineer builds a Wall. Dropped Battle Rifle. U-05 Engineer lays Concrete. U-05 Engineer builds a Wall. Acquired 4 matter. U-05 Engineer builds a Wall. Acquired 38 matter. U-05 Engineer lays Concrete. U-05 Engineer builds a Wall. U-05 Engineer lays Concrete. U-05 Engineer builds a Wall. The unstable cave ceiling collapses. Crushed by falling debris. U-05 Engineer lays Concrete. U-05 Engineer builds a Wall. G-47 Trooper destroyed. U-05 Engineer lays Concrete. U-05 Engineer builds a Wall. Map ----- +----------------------------------------------------+ | ?????????????????????????????????????????????????? | | ?????????????????????????????????????????????????? | | ?????????????????????????????????????????????????? | | ?????????????????????????????????????????????????? | | ?????????????????????????????????????????????????? | | ??????????????????????#####??????????????????????? | | ??????????????????????# #??????????????????????? | | ??????????????????????# #??????????????????????? | | ??????????????????????# #??????????????????????? | | ??????????????######### #??????????????????????? | | ??????? #??????????????????????? | | ??????????????######### #??????????????????????? | | ?????????????????###### #??????????????????????? | | ?????????????????# ; ########???????????????? | | ????????????????## ; # """ #???????????????? | | ????????????????# ###; # """ #???????????????? | | ?????????????#### ## ## + """ #???????????????? | | ?????????????# # # #???????????????? | | ?????????????# []# # #???????????????? | | ?????????????#|[ # # ! #???????????????? | | ?????????????#|[ ! # #########??????????????? | | ?????????????#| # ; !#??????????????? | | ?????????????# " # #??????????????? | | ???????????? + """ !; ! #??????????????? | | ?????????????# """ != #??????????????? | | ?????????????# w @l [#??????????????? | | ?????????????######### #????????? | | ?????????????????????# #????????? | | ????????????????????#; w ???????? | | ????????????????????## ????????? | | ?????????????????????# g%= ????????? | | ?????????????????????#/ ????????? | | ?????????????????????###;;; ?????????? | | ???????????????????????## #;**//[[ ?????????? | | ????????????????????????####**/ [[ ;???????????? | | ????????????????????????????#####;###????????????? | | ?????????????????????????????????##??????????????? | | ?????????????????????????????????????????????????? | | ?????????????????????????????????????????????????? | | ?????????????????????????????????????????????????? | | ?????????????????????????????????????????????????? | | ?????????????????????????????????????????????????? | | ?????????????????????????????????????????????????? | | ?????????????????????????????????????????????????? | | ?????????????????????????????????????????????????? | | ?????????????????????????????????????????????????? | | ?????????????????????????????????????????????????? | | ?????????????????????????????????????????????????? | | ?????????????????????????????????????????????????? | | ?????????????????????????????????????????????????? | +----------------------------------------------------+ Best States ------------- Heat Dissipation 31 Energy Generation 15 Energy Capacity 250 Matter Stores 300 Matter Capacity 300 Sight Range 16 Robot Scan Range 15 Terrain Scan Density 10 Armor Coverage 250 Propulsion Shielding 33 Evasion (%) 40 Recoil Reduction 2 Item Schematics ----------------- None Robot Schematics ------------------ None Fabricated ------------ Nothing Alien Tech Used ----------------- None Achievements -------------- None Challenges ------------ None Game ------ Seed HeatIntegratedSuit Manual? 0 Play Time 00:31:00 Cumulative 39.5 hours Start 2025.03.27 @ 17:37:24 End 2025.03.29 @ 12:51:12 Sessions 2 Manual Loads 0 Difficulty Rogue Special Mode None Game No. 33 Rogue 33 Adventurer 0 Explorer 0 Win Type - Total 0 Types 0/0/0/0/0/0/0/0/0 Lore% 15 Gallery% 30 Achievement% 28 Wizard Run 0 Options --------- Layout 1 ASCII 0 Keyboard 0 Movement Mouse Keybinds 0 Fullscreen 1 Font 32/SmallcapsGlow Map View 50x35 Zoom Use 0% Tactical HUD 0 Map Filters NONE Filters NONE Steam 1 RUN: cf8da893-5399-4e88-861f-45455edf5419